bitfinex-derivatives/quotes_BTCF0:USTF0_20260113
["timestamp","ask_amount","ask_price","bid_price","bid_amount"]
[1768295364356,0.02360549,92398.0,92389.0,0.010835]
[1768295364658,0.02360549,92397.0,92389.0,0.010835]
[1768295364955,0.13020819,92400.0,92389.0,0.010835]
[1768295365256,0.02375996,92399.0,92389.0,0.010835]
[1768295365447,0.02375996,92398.0,92389.0,0.010835]
[1768295365647,0.02375996,92397.0,92389.0,0.010835]
[1768295365849,0.13020819,92400.0,92389.0,0.010835]
[1768295366046,0.02376005,92399.0,92389.0,0.010835]
[1768295366247,0.02376005,92398.0,92389.0,0.010835]
[1768295366446,0.02376005,92397.0,92389.0,0.010835]
[1768295366648,0.13020819,92400.0,92389.0,0.010835]
[1768295366849,0.02376016,92399.0,92389.0,0.010835]
[1768295367050,0.02376016,92398.0,92389.0,0.010835]
[1768295367250,0.02376016,92397.0,92387.0,0.00998534]
[1768295367453,0.13020819,92400.0,92386.0,0.010835]
[1768295367652,0.02376027,92399.0,92386.0,0.010835]
[1768295367952,0.02376027,92398.0,92386.0,0.010835]
[1768295368152,0.02376027,92397.0,92386.0,0.010835]
[1768295368355,0.13020819,92400.0,92386.0,0.010835]
[1768295368552,0.02376041,92399.0,92386.0,0.010835]
[1768295368753,0.02376041,92398.0,92386.0,0.010835]
[1768295368953,0.02376041,92397.0,92382.0,0.19288225]
[1768295369163,0.13020819,92400.0,92382.0,0.19288225]
[1768295369359,0.02376041,92399.0,92382.0,0.19288225]
[1768295369663,0.02376041,92398.0,92382.0,0.20286759]
[1768295369849,0.02376041,92397.0,92382.0,0.20286759]
[1768295370055,0.13020819,92400.0,92383.0,0.09536225]
[1768295370358,0.02376055,92399.0,92389.0,0.010835]
[1768295370564,0.02376055,92398.0,92389.0,0.010835]
[1768295370764,0.02376055,92397.0,92389.0,0.010835]
[1768295370966,0.00541099,92405.0,92391.0,0.010835]
[1768295371160,0.13020819,92400.0,92391.0,0.010835]
[1768295371365,0.02232611,92403.0,92388.0,0.010835]
[1768295371564,0.13020819,92401.0,92388.0,0.010835]
[1768295374161,0.02232611,92403.0,92388.0,0.010835]
[1768295374366,0.00541099,92405.0,92386.0,0.10534759]
[1768295374567,0.00541099,92405.0,92390.0,0.13020819]
[1768295374755,0.00541099,92405.0,92389.0,0.09536225]
[1768295375267,0.13020819,92400.0,92386.0,0.10713442]
[1768295377168,0.13020819,92400.0,92390.0,0.010835]
[1768295380180,0.13020819,92400.0,92392.0,0.010835]
[1768295380382,0.13020819,92402.0,92386.0,0.00998534]
[1768295380579,0.13020819,92400.0,92386.0,0.00998534]
[1768295381082,0.13020819,92400.0,92386.0,0.10713442]
[1768295381378,0.09752,92410.0,92386.0,0.10713442]
[1768295381379,0.01957135,92436.0,92407.0,0.09714908]
[1768295381581,0.01083,92433.0,92414.0,0.10652774]
[1768295381878,0.01957135,92431.0,92414.0,0.00937866]
[1768295382067,0.13020819,92430.0,92414.0,0.00937866]
[1768295382268,0.01957135,92428.0,92411.0,0.09752]
[1768295382479,0.01957135,92428.0,92412.0,0.010833]
[1768295384180,0.13020819,92430.0,92416.0,0.010832]
[1768295384572,0.13020819,92430.0,92415.0,0.010832]
[1768295385682,0.01433481,92429.0,92415.0,0.010832]
[1768295387673,0.01433481,92429.0,92411.0,0.0976823]
[1768295387877,0.01433481,92429.0,92411.0,0.19483138]
[1768295388182,0.13951365,92430.0,92411.0,0.20421004]
[1768295388567,0.13020819,92430.0,92419.0,0.010832]
[1768295388772,0.13020819,92430.0,92422.0,0.010831]
[1768295388974,0.13020819,92440.0,92411.0,0.0976823]
[1768295388975,0.13951365,92440.0,92425.0,0.010831]
[1768295389875,0.13951365,92440.0,92428.0,0.010831]
[1768295390082,0.13951365,92440.0,92420.0,0.12703919]
[1768295390269,0.00930546,92439.0,92417.0,0.10652774]
[1768295390582,0.00930546,92439.0,92417.0,0.00937866]
[1768295390884,0.00909793,92436.0,92419.0,0.010832]
[1768295393078,0.00909793,92436.0,92423.0,0.010831]
[1768295395675,0.00765475,92435.0,92414.0,0.09714908]
[1768295395980,0.00765475,92434.0,92412.0,0.10652774]
[1768295396175,0.13020819,92430.0,92412.0,0.10652774]
[1768295396576,0.13020819,92430.0,92419.0,0.010832]
[1768295397284,0.13020819,92430.0,92412.0,0.10652774]
[1768295398087,0.00721813,92429.0,92412.0,0.010832]
[1768295398470,0.13020819,92430.0,92412.0,0.010832]
[1768295399074,0.13020819,92430.0,92411.0,0.19483138]
[1768295399075,0.13020819,92430.0,92415.0,0.010832]
[1768295399583,0.13020819,92430.0,92418.0,0.010832]
[1768295399885,0.13020819,92430.0,92415.0,0.010832]
[1768295400179,0.13020819,92430.0,92412.0,0.10652774]
[1768295400482,0.01216958,92429.0,92413.0,0.010832]
[1768295400679,0.01216958,92429.0,92414.0,0.09752]
[1768295400680,0.00930546,92429.0,92414.0,0.09752]
[1768295400983,0.13020819,92430.0,92415.0,0.09752]
[1768295401187,0.13020819,92430.0,92416.0,0.010832]
[1768295403378,0.010831,92429.0,92411.0,0.09731138]
[1768295403579,0.01263825,92426.0,92412.0,0.09752]
[1768295403783,0.13020819,92440.0,92416.0,0.13020819]
[1768295403784,0.01263825,92437.0,92416.0,0.13020819]
[1768295403989,0.02346825,92436.0,92420.0,0.13020819]
[1768295404181,0.01263825,92436.0,92420.0,0.13020819]
[1768295404381,0.01263825,92436.0,92420.0,0.14103919]
[1768295405678,0.00930546,92439.0,92422.0,0.010831]
[1768295406088,0.01525657,92438.0,92424.0,0.010831]
[1768295406386,0.13020819,92440.0,92426.0,0.010831]
[1768295406387,0.14546476,92440.0,92426.0,0.010831]
[1768295406574,0.01451587,92439.0,92421.0,0.010831]
[1768295407585,0.01451587,92430.0,92414.0,0.010832]
[1768295407880,0.01451587,92430.0,92416.0,0.010832]
[1768295408084,0.13020819,92431.0,92416.0,0.010832]
[1768295409391,0.13020819,92431.0,92413.0,0.10253176]
[1768295409992,0.13020819,92431.0,92419.0,0.010832]
[1768295410185,0.13020819,92431.0,92422.0,0.010831]
[1768295410980,0.13020819,92431.0,92419.0,0.010832]
[1768295412290,0.01677494,92436.0,92419.0,0.010832]
[1768295412490,0.13020819,92430.0,92419.0,0.010832]
[1768295415388,0.13020819,92430.0,92415.0,0.010832]
[1768295415583,0.01518372,92433.0,92412.0,0.09752]
[1768295415784,0.03793058,92432.0,92412.0,0.09752]
[1768295415989,0.13020819,92422.0,92411.0,0.0001623]
[1768295416190,0.0245134,92417.0,92400.0,0.0495]
[1768295416392,0.01518372,92416.0,92401.0,0.09748]
[1768295416893,0.01518372,92416.0,92399.0,0.010834]
[1768295417096,0.01518372,92416.0,92400.0,0.22768819]
[1768295417684,0.01518372,92416.0,92400.0,0.09748]
[1768295418294,0.13020819,92410.0,92395.0,0.010834]
[1768295418598,0.14628446,92410.0,92396.0,0.09748]
[1768295419188,0.13020819,92410.0,92397.0,0.010834]
[1768295419887,0.13020819,92410.0,92400.0,0.010834]
[1768295420094,0.0001623,92412.0,92400.0,0.14104219]
[1768295420895,0.0001623,92412.0,92401.0,0.10106913]
[1768295421101,0.13020819,92420.0,92405.0,0.010833]
[1768295421299,0.0129553,92422.0,92405.0,0.010833]
[1768295421496,2.4e-07,92421.0,92417.0,0.010832]
[1768295421702,2.4e-07,92421.0,92401.0,0.11190313]
[1768295421703,0.010829,92444.0,92420.0,0.11190113]
[1768295421897,0.09752,92443.0,92420.0,0.10106913]
[1768295422094,0.10684968,92443.0,92420.0,0.10106913]
[1768295422798,0.00932968,92442.0,92420.0,0.10106913]
[1768295422995,0.00932968,92442.0,92430.0,0.01083]
[1768295423194,0.00932968,92449.0,92430.0,0.01083]
[1768295423500,0.00932968,92447.0,92430.0,0.01083]
[1768295424600,0.00988048,92447.0,92430.0,0.01083]
[1768295424998,0.0005508,92446.0,92427.0,0.010831]
[1768295425199,0.0005508,92445.0,92427.0,0.010831]
[1768295427000,0.0005508,92445.0,92426.0,0.00947471]
[1768295427801,0.0005508,92445.0,92426.0,0.00047471]
[1768295427994,0.01004961,92444.0,92422.0,0.09159442]
[1768295429098,0.01004961,92444.0,92424.0,0.10242542]
[1768295429897,0.00052648,92443.0,92424.0,0.10242542]
[1768295430098,0.00985616,92443.0,92424.0,0.10242542]
[1768295430892,0.09752,92448.0,92414.0,0.09752]
[1768295430893,0.01125925,92439.0,92421.0,0.09159442]
[1768295431099,0.00975993,92437.0,92417.0,0.10242642]
[1768295431605,0.00975993,92437.0,92420.0,0.010832]
[1768295431806,0.00975993,92437.0,92422.0,0.010831]
[1768295432008,0.00043025,92435.0,92422.0,0.010831]
[1768295432205,0.00932968,92436.0,92422.0,0.010831]
[1768295432605,0.00064006,92435.0,92422.0,0.010831]
[1768295432907,0.00996974,92435.0,92422.0,0.010831]
[1768295433509,0.00996974,92435.0,92416.0,0.09159442]
[1768295433807,0.02336199,92434.0,92416.0,0.09159442]
[1768295434106,0.02336199,92433.0,92416.0,0.09159442]
[1768295434408,0.00932968,92435.0,92417.0,0.010832]
[1768295434602,0.02336163,92434.0,92421.0,0.010831]
[1768295434798,0.02336163,92433.0,92421.0,0.010831]
[1768295434998,0.00932968,92435.0,92421.0,0.010831]
[1768295435199,0.02336164,92434.0,92421.0,0.010831]
[1768295435398,0.02336164,92433.0,92421.0,0.010831]
[1768295435606,0.00932968,92435.0,92421.0,0.010831]
[1768295435799,0.0233613,92434.0,92416.0,0.0939393]
[1768295436108,0.09748,92441.0,92426.0,0.0939393]
[1768295436306,0.02822625,92440.0,92422.0,0.010831]
[1768295436605,0.02822625,92439.0,92419.0,0.0939393]
[1768295437312,0.01739725,92439.0,92421.0,0.010831]
[1768295437709,0.01786089,92436.0,92421.0,0.010831]
[1768295438110,0.01786089,92436.0,92418.0,0.010832]
[1768295438813,0.01786089,92436.0,92417.0,0.0939393]
[1768295439412,0.00918884,92436.0,92417.0,0.0939393]
[1768295439708,0.00865899,92439.0,92417.0,0.10303544]
[1768295439905,0.00865899,92439.0,92419.0,0.0939393]
[1768295441804,0.01083,92438.0,92419.0,0.0939393]
[1768295443013,0.00865899,92439.0,92420.0,0.010831]
[1768295444108,0.11749784,92441.0,92416.0,0.1914193]
[1768295444109,0.01612786,92435.0,92416.0,0.1914193]
[1768295444314,0.01083,92434.0,92416.0,0.1914193]
[1768295446207,0.01083,92434.0,92417.0,0.0939393]
[1768295446920,0.00918884,92435.0,92417.0,0.1047713]
[1768295447120,0.010829,92438.0,92417.0,0.1047713]
[1768295447317,0.010829,92438.0,92417.0,0.11386744]
[1768295448120,0.02326418,92437.0,92417.0,0.11386744]
[1768295448419,0.02326418,92436.0,92417.0,0.11386744]
[1768295448607,0.02326418,92435.0,92417.0,0.11386744]
[1768295448807,0.02326418,92434.0,92417.0,0.11386744]
[1768295449105,0.01083,92436.0,92417.0,0.11386744]
[1768295449309,0.02326708,92435.0,92417.0,0.11386744]
[1768295449518,0.02326708,92434.0,92417.0,0.11386744]
[1768295449716,0.02326708,92433.0,92417.0,0.11386744]
[1768295449918,0.01083,92436.0,92417.0,0.11386744]
[1768295450115,0.02327408,92435.0,92417.0,0.11386744]
[1768295450321,0.02327408,92434.0,92417.0,0.11386744]
[1768295450520,0.02327408,92433.0,92417.0,0.11386744]
[1768295450713,0.02327408,92432.0,92417.0,0.11386744]
[1768295450915,0.01650805,92439.0,92417.0,0.11386744]
[1768295451111,0.02328338,92438.0,92420.0,0.0939393]
[1768295451419,0.02328338,92437.0,92420.0,0.10303544]
[1768295451607,0.02328338,92436.0,92420.0,0.10303544]
[1768295451809,0.02328338,92435.0,92420.0,0.10303544]
[1768295452013,0.02328338,92434.0,92420.0,0.10303544]
[1768295452213,0.02328338,92433.0,92420.0,0.10303544]
[1768295452412,0.02328338,92432.0,92420.0,0.10303544]
[1768295452614,0.02328338,92431.0,92420.0,0.10303544]
[1768295452814,0.010829,92439.0,92420.0,0.10303544]
[1768295453020,0.0232958,92438.0,92420.0,0.10303544]
[1768295453208,0.0232958,92437.0,92420.0,0.10303544]
[1768295453411,0.0232958,92436.0,92420.0,0.10303544]
[1768295453712,0.0232958,92435.0,92420.0,0.10303544]
[1768295453910,0.0232958,92434.0,92420.0,0.10303544]
[1768295454121,0.0232958,92433.0,92420.0,0.10303544]
[1768295454422,0.0232958,92432.0,92420.0,0.10303544]
[1768295454623,0.0232958,92431.0,92420.0,0.10303544]
[1768295454924,0.01083,92437.0,92420.0,0.10303544]
[1768295455120,0.02332047,92436.0,92424.0,0.10303544]
[1768295455422,0.09748,92458.0,92445.0,0.0939393]
[1768295455612,0.09748,92458.0,92447.0,0.0939393]
[1768295456130,0.09748,92499.0,92460.0,0.0939393]
[1768295456312,0.010824,92487.0,92472.0,0.10303544]
[1768295457414,0.13013961,92482.0,92462.0,0.010827]
[1768295457625,0.13013961,92482.0,92463.0,0.09748]
[1768295458125,0.010824,92484.0,92463.0,0.20051544]
[1768295458319,0.13013961,92480.0,92464.0,0.10303544]
[1768295458510,0.010824,92484.0,92464.0,0.10303544]
[1768295459617,0.13013961,92480.0,92464.0,0.10303544]
[1768295460010,0.14096461,92480.0,92464.0,0.00909614]
[1768295460219,0.00317782,92479.0,92458.0,0.00909614]
[1768295460410,0.13013961,92470.0,92456.0,0.09748]
[1768295460611,0.13013961,92470.0,92456.0,0.07448]
[1768295460812,0.010826,92467.0,92452.0,0.00909614]
[1768295461326,0.010826,92467.0,92453.0,0.09748]
[1768295461527,0.010826,92467.0,92452.0,0.00909614]
[1768295461727,0.010826,92467.0,92453.0,0.09748]
[1768295462425,0.010826,92467.0,92437.0,0.53808]
[1768295462426,0.00291234,92466.0,92447.0,0.09748]
[1768295462615,0.00291234,92466.0,92446.0,0.00909614]
[1768295462616,0.010826,92468.0,92448.0,0.09748]
[1768295463025,0.010826,92465.0,92448.0,0.09748]
[1768295463222,0.010827,92462.0,92448.0,0.09748]
[1768295463414,0.010827,92462.0,92446.0,0.10303544]
[1768295463617,0.010827,92462.0,92447.0,0.09748]
[1768295464219,0.010827,92462.0,92446.0,0.00909614]
[1768295464421,0.010827,92462.0,92440.0,0.10303544]
[1768295464622,0.010827,92462.0,92441.0,0.09748]
[1768295465018,0.010827,92462.0,92441.0,0.19741009]
[1768295465330,0.0117849,92465.0,92448.0,0.00237973]
[1768295465331,0.010827,92456.0,92448.0,0.00237973]
[1768295465525,0.010828,92450.0,92438.0,0.09748]
[1768295465720,0.010828,92450.0,92437.0,0.09008095]
[1768295466025,0.010828,92450.0,92435.0,0.09748]
[1768295468122,0.14096761,92450.0,92435.0,0.09748]
[1768295468322,0.14096761,92450.0,92435.0,0.09348]
[1768295468523,0.010828,92447.0,92435.0,0.09348]
[1768295468712,0.010828,92447.0,92421.0,0.00010358]
[1768295468713,0.01083,92434.0,92421.0,0.00010358]
[1768295468918,0.01083,92434.0,92422.0,0.09748]
[1768295469223,0.01083,92437.0,92421.0,0.00010358]
[1768295469521,0.01083,92437.0,92423.0,0.09748]
[1768295470522,0.13013961,92440.0,92421.0,0.00010358]
[1768295470725,0.01083,92430.0,92421.0,0.00010358]
[1768295471024,0.00953711,92439.0,92421.0,0.00010358]
[1768295471927,0.01083,92431.0,92421.0,0.00010358]
[1768295472924,0.010831,92428.0,92421.0,0.00010358]
[1768295475217,0.13013961,92431.0,92413.0,0.00984914]
[1768295475422,0.13013961,92431.0,92412.0,0.09139686]
[1768295475423,0.010831,92423.0,92412.0,0.09139686]
[1768295475621,0.010832,92420.0,92412.0,0.09139686]
[1768295475825,0.010831,92424.0,92408.0,0.09139686]
[1768295476321,0.00010504,92423.0,92408.0,0.09139686]
[1768295476528,0.00010504,92423.0,92408.0,0.10087437]
[1768295477128,0.00010504,92423.0,92409.0,0.00947751]
[1768295477329,0.00010504,92423.0,92410.0,0.09139686]
[1768295480330,0.00010504,92423.0,92410.0,0.10087437]
[1768295481327,0.13014469,92420.0,92410.0,0.10087437]
[1768295482631,0.13014469,92420.0,92405.0,0.09139686]
[1768295482822,0.13014469,92420.0,92407.0,0.09139686]
[1768295483022,0.13014469,92417.0,92407.0,0.09139686]
[1768295483333,0.13014469,92417.0,92408.0,0.10222986]
[1768295483520,0.010829,92445.0,92425.0,0.09139686]
[1768295483725,0.13014469,92440.0,92429.0,0.10087437]
[1768295484424,0.13014469,92440.0,92429.0,0.09139686]
[1768295486635,0.14097369,92440.0,92424.0,0.09139686]
[1768295486826,0.13014469,92440.0,92424.0,0.09139686]
[1768295487428,0.14097369,92440.0,92424.0,0.09139686]
[1768295489235,0.13014469,92440.0,92424.0,0.09139686]
[1768295490138,0.010829,92436.0,92424.0,0.09139686]
[1768295491129,0.010828,92443.0,92426.0,0.10087437]
[1768295491329,0.09748,92444.0,92431.0,0.10087437]
[1768295492440,0.09748,92444.0,92425.0,0.01083]
[1768295492441,0.09748,92444.0,92433.0,0.10087437]
[1768295492735,0.09748,92444.0,92435.0,0.09139686]
[1768295493039,0.010828,92445.0,92435.0,0.09139686]
[1768295495231,0.02319155,92444.0,92435.0,0.09139686]
[1768295495431,0.010828,92445.0,92435.0,0.09139686]
[1768295495636,0.02319155,92444.0,92435.0,0.09139686]
[1768295495837,0.02319155,92443.0,92435.0,0.09139686]
[1768295496038,0.010828,92445.0,92435.0,0.07539686]
[1768295496239,0.02319504,92444.0,92435.0,0.07539686]
[1768295496436,0.02319504,92443.0,92435.0,0.07539686]
[1768295496636,0.010828,92445.0,92435.0,0.07539686]
[1768295496936,0.02319504,92444.0,92435.0,0.07539686]
[1768295497239,0.02319504,92443.0,92435.0,0.07539686]
[1768295497430,0.13014469,92450.0,92435.0,0.07539686]
[1768295497626,0.02319884,92449.0,92435.0,0.07539686]
[1768295497828,0.02319884,92448.0,92435.0,0.07539686]
[1768295498036,0.02319884,92447.0,92435.0,0.07539686]
[1768295498344,0.02319884,92446.0,92435.0,0.07539686]
[1768295498543,0.02319884,92445.0,92435.0,0.07539686]
[1768295498841,0.02319884,92444.0,92435.0,0.07539686]
[1768295499044,0.02319884,92443.0,92435.0,0.07539686]
[1768295499245,0.02319884,92442.0,92435.0,0.07539686]
[1768295499542,0.010827,92447.0,92435.0,0.07539686]
[1768295499844,0.010828,92445.0,92435.0,0.07539686]
[1768295500035,0.02320213,92444.0,92435.0,0.07539686]
[1768295500236,0.02320213,92443.0,92435.0,0.07539686]
[1768295500435,0.02320213,92442.0,92435.0,0.07539686]
[1768295500644,0.010828,92445.0,92435.0,0.07539686]
[1768295500943,0.02320247,92444.0,92435.0,0.07539686]
[1768295501143,0.02320247,92443.0,92435.0,0.07539686]
[1768295501345,0.02320247,92442.0,92435.0,0.07539686]
[1768295501542,0.010828,92445.0,92435.0,0.07539686]
[1768295501745,0.02320145,92444.0,92435.0,0.07539686]
[1768295501937,0.02320145,92443.0,92435.0,0.07539686]
[1768295502142,0.010828,92445.0,92435.0,0.07539686]
[1768295502339,0.02320032,92444.0,92435.0,0.07539686]
[1768295502643,0.010828,92445.0,92435.0,0.07539686]
[1768295502942,0.010828,92443.0,92435.0,0.07539686]
[1768295503142,0.010828,92443.0,92429.0,0.00926985]
[1768295503143,0.010828,92443.0,92430.0,0.0950129]
[1768295503548,0.010828,92440.0,92430.0,0.0950129]
[1768295503748,0.14097269,92440.0,92430.0,0.0950129]
[1768295504240,0.010829,92436.0,92420.0,0.09748]
[1768295504450,0.13014469,92430.0,92421.0,0.0950129]
[1768295504652,0.010829,92436.0,92421.0,0.0950129]
[1768295505745,0.13014469,92450.0,92433.0,0.0950129]
[1768295506042,0.13014469,92450.0,92420.0,0.22762469]
[1768295506043,0.02319999,92449.0,92435.0,0.10428275]
[1768295506239,0.02319999,92448.0,92435.0,0.10428275]
[1768295506436,0.0906951,92465.0,92443.0,0.10428275]
[1768295506639,0.010826,92459.0,92445.0,0.0950129]
[1768295507447,0.010826,92457.0,92445.0,0.0950129]
[1768295508749,0.010826,92457.0,92445.0,0.0920129]
[1768295509662,0.13014469,92460.0,92446.0,0.00926985]
[1768295510836,0.13014469,92460.0,92447.0,0.0950129]
[1768295513751,0.09748,92464.0,92451.0,0.0950129]
[1768295514654,0.13014469,92461.0,92451.0,0.0950129]
[1768295516457,0.13014469,92461.0,92451.0,0.0880129]
[1768295516851,0.09748,92464.0,92451.0,0.0880129]
[1768295518345,0.0229809,92463.0,92451.0,0.0880129]
[1768295518558,0.0229809,92462.0,92451.0,0.0880129]
[1768295518752,0.0229809,92461.0,92444.0,0.0950129]
[1768295518957,0.15312559,92460.0,92446.0,0.0950129]
[1768295519147,0.0229809,92459.0,92446.0,0.0950129]
[1768295519347,0.0229809,92458.0,92446.0,0.0950129]
[1768295519547,0.0229809,92457.0,92446.0,0.0950129]
[1768295519756,0.13014469,92460.0,92446.0,0.0950129]
[1768295519757,0.0229809,92456.0,92446.0,0.0950129]
[1768295519958,0.0229809,92455.0,92446.0,0.0950129]
[1768295520147,0.0229809,92454.0,92446.0,0.0950129]
[1768295520348,0.0229809,92453.0,92446.0,0.0950129]
[1768295520650,0.13014469,92460.0,92446.0,0.0950129]
[1768295520958,0.02298315,92459.0,92446.0,0.0950129]
[1768295521157,0.02298315,92458.0,92446.0,0.0950129]
[1768295521750,0.02298315,92458.0,92440.0,0.22762469]
[1768295521751,0.00938599,92457.0,92441.0,0.09748]
[1768295521951,0.10008109,92455.0,92436.0,0.0950129]
[1768295522153,0.02298315,92454.0,92440.0,0.09748]
[1768295522351,0.02298583,92453.0,92440.0,0.22762469]
[1768295522655,0.00938599,92455.0,92440.0,0.22762469]
[1768295523158,0.13014469,92460.0,92435.0,0.1924929]
[1768295523159,0.13014469,92450.0,92435.0,0.1924929]
[1768295523362,0.00938599,92453.0,92440.0,0.13014469]
[1768295523561,0.0906951,92458.0,92440.0,0.13014469]
[1768295528057,0.010826,92457.0,92438.0,0.0950129]
[1768295528250,0.010826,92457.0,92440.0,0.13014469]
[1768295529149,0.0906951,92458.0,92440.0,0.13014469]
[1768295529358,0.00938599,92459.0,92441.0,0.09700211]
[1768295529553,0.13014469,92460.0,92443.0,0.10631927]
[1768295529750,0.02299303,92459.0,92443.0,0.10631927]
[1768295529952,0.02299303,92458.0,92443.0,0.10631927]
[1768295530152,0.13014469,92460.0,92443.0,0.10631927]
[1768295530464,0.02299545,92459.0,92449.0,0.09700211]
[1768295530651,0.02299545,92458.0,92449.0,0.2271468]
[1768295530851,0.108305,92464.0,92449.0,0.2271468]
[1768295531059,0.02299537,92463.0,92449.0,0.2271468]
[1768295531360,0.02299537,92462.0,92450.0,0.09700211]
[1768295531562,0.02299537,92461.0,92445.0,0.09700211]
[1768295531756,0.09748,92464.0,92451.0,0.09700211]
[1768295531961,0.010825,92468.0,92453.0,0.09700211]
[1768295532663,0.010825,92468.0,92450.0,0.13014469]
[1768295532866,0.010825,92466.0,92450.0,0.13014469]
[1768295533260,0.010825,92464.0,92448.0,0.09700211]
[1768295535460,0.010825,92467.0,92448.0,0.09700211]
[1768295535665,0.010825,92467.0,92447.0,0.09748]
[1768295535666,0.010825,92468.0,92451.0,0.09126133]
[1768295536662,0.00928523,92469.0,92451.0,0.09126133]
[1768295537066,0.13014469,92470.0,92451.0,0.09126133]
[1768295538061,0.010825,92469.0,92451.0,0.09126133]
[1768295539159,0.010825,92469.0,92451.0,0.10090223]
[1768295539359,0.010825,92469.0,92453.0,0.09126133]
[1768295540361,0.010825,92469.0,92453.0,0.10090223]
[1768295540666,0.00954305,92476.0,92460.0,0.09126133]
[1768295540667,0.010824,92473.0,92460.0,0.09126133]
[1768295540865,0.09748,92476.0,92460.0,0.09126133]
[1768295541064,0.010824,92475.0,92460.0,0.09126133]
[1768295541768,0.09748,92476.0,92460.0,0.09126133]
[1768295542468,0.09748,92476.0,92459.0,0.13978559]
[1768295542469,0.09748,92476.0,92462.0,0.10090223]
[1768295542862,0.108304,92476.0,92462.0,0.10090223]
[1768295543462,0.108304,92476.0,92462.0,0.09126133]
[1768295543773,0.02293937,92475.0,92462.0,0.09126133]
[1768295543973,0.02293937,92474.0,92462.0,0.09126133]
[1768295544272,0.03376337,92473.0,92462.0,0.08426133]
[1768295544471,0.02293937,92472.0,92462.0,0.08426133]
[1768295544670,0.02293937,92471.0,92462.0,0.08426133]
[1768295544864,0.02293937,92470.0,92462.0,0.08426133]
[1768295545073,0.02293937,92469.0,92462.0,0.08426133]
[1768295545262,0.02293937,92468.0,92462.0,0.08426133]
[1768295545463,0.02293937,92467.0,92462.0,0.08426133]
[1768295545773,0.010824,92472.0,92456.0,0.0096409]
[1768295545965,0.0228612,92471.0,92456.0,0.0096409]
[1768295546160,0.0228612,92470.0,92456.0,0.0096409]
[1768295546366,0.0228612,92469.0,92457.0,0.09126133]
[1768295546567,0.0228612,92468.0,92457.0,0.09126133]
[1768295546873,0.0228612,92467.0,92457.0,0.09126133]
[1768295547074,0.10702305,92476.0,92457.0,0.09126133]
[1768295547373,0.03239978,92475.0,92457.0,0.09126133]
[1768295547563,0.02285673,92474.0,92457.0,0.09126133]
[1768295547763,0.02285673,92473.0,92457.0,0.09126133]
[1768295547976,0.02285673,92472.0,92457.0,0.09126133]
[1768295548271,0.02285673,92471.0,92452.0,0.09126133]
[1768295548477,0.02285673,92470.0,92452.0,0.09126133]
[1768295548664,0.02285673,92469.0,92452.0,0.09126133]
[1768295548865,0.02285673,92468.0,92452.0,0.09126133]
[1768295549060,0.09748,92476.0,92447.0,0.09748]
[1768295549061,0.02285673,92467.0,92454.0,0.09126133]
[1768295549266,0.09748,92476.0,92460.0,0.09126133]
[1768295549471,0.03367727,92475.0,92460.0,0.09126133]
[1768295549678,0.02285327,92474.0,92460.0,0.09126133]
[1768295549977,0.02285327,92473.0,92460.0,0.09126133]
[1768295550178,0.02285327,92472.0,92460.0,0.09126133]
[1768295550378,0.02285327,92471.0,92460.0,0.09126133]
[1768295550673,0.02285327,92470.0,92460.0,0.09126133]
[1768295550872,0.02285327,92469.0,92460.0,0.09126133]
[1768295551174,0.010824,92475.0,92460.0,0.09126133]
[1768295551368,0.02285103,92474.0,92460.0,0.09126133]
[1768295551566,0.02285103,92473.0,92460.0,0.09126133]
[1768295551768,0.02285103,92472.0,92460.0,0.09126133]
[1768295552077,0.02285103,92471.0,92460.0,0.09126133]
[1768295552271,0.02285103,92470.0,92460.0,0.09126133]
[1768295552472,0.02285103,92469.0,92455.0,0.09126133]
[1768295552672,0.010824,92472.0,92455.0,0.09126133]
[1768295552971,0.108304,92476.0,92455.0,0.09126133]
[1768295553171,0.02285003,92475.0,92455.0,0.09126133]
[1768295553368,0.108304,92476.0,92455.0,0.09126133]
[1768295553369,0.03367403,92474.0,92455.0,0.09126133]
[1768295553568,0.02285003,92473.0,92455.0,0.09126133]
[1768295553768,0.02285003,92472.0,92455.0,0.09126133]
[1768295553971,0.010824,92474.0,92455.0,0.09126133]
[1768295554176,0.010824,92472.0,92455.0,0.09126133]
[1768295554688,0.010824,92475.0,92459.0,0.0911963]
[1768295554979,0.10653033,92491.0,92471.0,0.1002207]
[1768295555278,0.02284663,92484.0,92471.0,0.1002207]
[1768295555579,0.09744,92491.0,92475.0,0.0911963]
[1768295555771,0.02284223,92484.0,92475.0,0.0911963]
[1768295555971,0.09744,92491.0,92475.0,0.0911963]
[1768295556371,0.010823,92486.0,92475.0,0.0911963]
[1768295556978,0.010823,92486.0,92475.0,0.0781963]
[1768295557372,0.09744,92491.0,92475.0,0.0781963]
[1768295557580,0.12998203,92490.0,92469.0,0.0090244]
[1768295558477,0.010823,92484.0,92469.0,0.0090244]
[1768295558673,0.010823,92487.0,92469.0,0.0090244]
[1768295559180,0.010823,92487.0,92470.0,0.0911963]
[1768295559475,0.0228321,92486.0,92472.0,0.1002207]
[1768295559681,0.010823,92487.0,92472.0,0.1002207]
[1768295559878,0.0228321,92486.0,92472.0,0.1002207]
[1768295560077,0.010823,92485.0,92472.0,0.1002207]
[1768295560579,0.010823,92483.0,92472.0,0.0911963]
[1768295560780,0.00909033,92489.0,92467.0,0.0911963]
[1768295560982,0.03192158,92488.0,92467.0,0.0911963]
[1768295561177,0.010823,92483.0,92467.0,0.0911963]
[1768295562168,0.010823,92483.0,92469.0,0.0911963]
[1768295562783,0.02283072,92482.0,92469.0,0.0911963]
[1768295562977,0.010823,92483.0,92469.0,0.0911963]
[1768295562978,0.02283072,92481.0,92469.0,0.0911963]
[1768295563181,0.02283072,92480.0,92469.0,0.0911963]
[1768295563382,0.010823,92483.0,92469.0,0.0911963]
[1768295563584,0.02283083,92482.0,92469.0,0.0911963]
[1768295563777,0.02283083,92481.0,92469.0,0.0911963]
[1768295563983,0.02283083,92480.0,92469.0,0.0911963]
[1768295564286,0.02283083,92479.0,92469.0,0.0911963]
[1768295564484,0.02283083,92478.0,92469.0,0.0911963]
[1768295564785,0.02283083,92477.0,92469.0,0.0911963]
[1768295564986,0.02283083,92476.0,92469.0,0.0911963]
[1768295565185,0.02283083,92475.0,92469.0,0.0911963]
[1768295565481,0.02283083,92474.0,92469.0,0.0911963]
[1768295565678,0.02283083,92473.0,92469.0,0.0911963]
[1768295565984,0.010823,92484.0,92469.0,0.0911963]
[1768295566187,0.02283225,92483.0,92469.0,0.0911963]
[1768295566387,0.02283225,92482.0,92469.0,0.0911963]
[1768295566687,0.02283225,92481.0,92469.0,0.0911963]
[1768295566888,0.02283225,92480.0,92469.0,0.0911963]
[1768295567082,0.02283225,92479.0,92469.0,0.0911963]